[Event "Titled Tuesday Blitz November 14 Late 2023"]
[White "Akhayan, Ruben"]
[Black "Jelcic, Marko"]
[WhiteFideId "204439"]
[BlackFideId "14406489"]
[WhiteElo "2425"]
[BlackElo "2132"]
[Result "1-0"]
[Round "2"]
[TimeControl "180+1"]
[Date "2023.11.14"]
[WhiteClock "0:01:10"]
[BlackClock "0:00:55"]
[Board "173"]

1. e4 {[%clk 0:03:00]}  e5 {[%clk 0:02:57]} 2. Bc4 {[%clk 0:02:58]}  d6 {[%clk 0:02:56]} 3. d3 {[%clk 0:02:59]}  Nd7 {[%clk 0:02:53]} 4. Nc3 {[%clk 0:02:59]}  Ngf6 {[%clk 0:02:52]} 5. f4 {[%clk 0:02:59]}  exf4 {[%clk 0:02:45]} 6. Bxf4 {[%clk 0:02:57]}  Ne5 {[%clk 0:02:43]} 7. Bb3 {[%clk 0:02:56]}  Be7 {[%clk 0:02:41]} 8. Nf3 {[%clk 0:02:57]}  Ng6 {[%clk 0:02:39]} 9. Be3 {[%clk 0:02:56]}  O-O {[%clk 0:02:39]} 10. Qd2 {[%clk 0:02:56]}  Ng4 {[%clk 0:02:35]} 11. O-O {[%clk 0:02:48]}  Nxe3 {[%clk 0:02:32]} 12. Qxe3 {[%clk 0:02:48]}  c6 {[%clk 0:02:30]} 13. Kh1 {[%clk 0:02:47]}  a5 {[%clk 0:02:22]} 14. Rf2 {[%clk 0:02:37]}  Kh8 {[%clk 0:02:21]} 15. Raf1 {[%clk 0:02:36]}  f5 {[%clk 0:02:16]} 16. exf5 {[%clk 0:02:27]}  Rxf5 {[%clk 0:02:09]} 17. Be6 {[%clk 0:02:10]}  Bxe6 {[%clk 0:02:00]} 18. Qxe6 {[%clk 0:02:10]}  Qf8 {[%clk 0:02:00]} 19. Qe1 {[%clk 0:01:49]}  Re8 {[%clk 0:01:49]} 20. Nd4 {[%clk 0:01:32]}  Bf6 {[%clk 0:01:24]} 21. Nxf5 {[%clk 0:01:20]}  Rxe1 {[%clk 0:01:23]} 22. Rxe1 {[%clk 0:01:21]}  Bxc3 {[%clk 0:01:10]} 23. bxc3 {[%clk 0:01:18]}  Nh4 {[%clk 0:00:55]} 24. Nxh4 {[%clk 0:01:10]} 1-0


[Site "https://www.chess.com"]

[Event "Titled Tuesday Blitz November 14 Late 2023"]
[White "Levine, David"]
[Black "PapaieDudu"]
[WhiteFideId "2011611"]
[WhiteElo "2122"]
[BlackElo "2425"]
[Result "1-0"]
[Round "2"]
[TimeControl "180+1"]
[Date "2023.11.14"]
[WhiteClock "0:00:49"]
[BlackClock "0:00:38"]
[Board "174"]

1. d4 {[%clk 0:02:59]}  d5 {[%clk 0:02:59]} 2. c4 {[%clk 0:02:59]}  e6 {[%clk 0:03:00]} 3. g3 {[%clk 0:02:59]}  Nf6 {[%clk 0:03:00]} 4. Bg2 {[%clk 0:02:59]}  Be7 {[%clk 0:03:01]} 5. Nf3 {[%clk 0:02:59]}  O-O {[%clk 0:03:02]} 6. O-O {[%clk 0:02:59]}  dxc4 {[%clk 0:03:00]} 7. Na3 {[%clk 0:02:59]}  a6 {[%clk 0:02:48]} 8. Nxc4 {[%clk 0:02:58]}  b5 {[%clk 0:02:49]} 9. Nce5 {[%clk 0:02:58]}  Bb7 {[%clk 0:02:49]} 10. Bg5 {[%clk 0:02:56]}  h6 {[%clk 0:02:45]} 11. Bxf6 {[%clk 0:02:56]}  Bxf6 {[%clk 0:02:46]} 12. e3 {[%clk 0:02:56]}  Nd7 {[%clk 0:02:46]} 13. Nxd7 {[%clk 0:02:49]}  Qxd7 {[%clk 0:02:46]} 14. Qc2 {[%clk 0:02:46]}  Rac8 {[%clk 0:02:13]} 15. Ne5 {[%clk 0:02:35]}  Bxe5 {[%clk 0:02:12]} 16. Bxb7 {[%clk 0:02:34]}  Rb8 {[%clk 0:02:13]} 17. Bc6 {[%clk 0:02:32]}  Qd6 {[%clk 0:02:13]} 18. dxe5 {[%clk 0:02:32]}  Qxe5 {[%clk 0:02:14]} 19. Rad1 {[%clk 0:02:24]}  Rfd8 {[%clk 0:02:14]} 20. Rxd8+ {[%clk 0:02:22]}  Rxd8 {[%clk 0:02:15]} 21. Bf3 {[%clk 0:02:16]}  c5 {[%clk 0:02:13]} 22. b3 {[%clk 0:02:14]}  c4 {[%clk 0:02:12]} 23. bxc4 {[%clk 0:02:11]}  Rc8 {[%clk 0:02:13]} 24. Be2 {[%clk 0:02:07]}  h5 {[%clk 0:02:09]} 25. h4 {[%clk 0:02:06]}  g5 {[%clk 0:02:05]} 26. hxg5 {[%clk 0:02:05]}  Qxg5 {[%clk 0:02:06]} 27. Kg2 {[%clk 0:01:45]}  bxc4 {[%clk 0:01:52]} 28. Rh1 {[%clk 0:01:40]}  Qd5+ {[%clk 0:01:39]} 29. Bf3 {[%clk 0:01:39]}  Qd3 {[%clk 0:01:38]} 30. Qxd3 {[%clk 0:01:38]}  cxd3 {[%clk 0:01:38]} 31. Rd1 {[%clk 0:01:38]}  Rd8 {[%clk 0:01:38]} 32. Rd2 {[%clk 0:01:34]}  f5 {[%clk 0:01:38]} 33. e4 {[%clk 0:01:34]}  h4 {[%clk 0:01:34]} 34. gxh4 {[%clk 0:01:34]}  Kg7 {[%clk 0:01:35]} 35. exf5 {[%clk 0:01:33]}  exf5 {[%clk 0:01:35]} 36. Kg3 {[%clk 0:01:33]}  Kf6 {[%clk 0:01:36]} 37. Kf4 {[%clk 0:01:33]}  Rd4+ {[%clk 0:01:35]} 38. Ke3 {[%clk 0:01:30]}  Rxh4 {[%clk 0:01:22]} 39. Rxd3 {[%clk 0:01:27]}  Ra4 {[%clk 0:01:23]} 40. a3 {[%clk 0:01:25]}  Ke5 {[%clk 0:01:23]} 41. Bb7 {[%clk 0:01:18]}  a5 {[%clk 0:01:10]} 42. f4+ {[%clk 0:01:12]}  Ke6 {[%clk 0:01:09]} 43. Bc8+ {[%clk 0:01:07]}  Kf6 {[%clk 0:01:08]} 44. Bd7 {[%clk 0:01:05]}  Re4+ {[%clk 0:01:08]} 45. Kf3 {[%clk 0:01:05]}  Re1 {[%clk 0:01:08]} 46. Rd5 {[%clk 0:01:00]}  Rf1+ {[%clk 0:01:00]} 47. Ke3 {[%clk 0:00:59]}  Ra1 {[%clk 0:00:54]} 48. Rxa5 {[%clk 0:00:58]}  Re1+ {[%clk 0:00:53]} 49. Kf2 {[%clk 0:00:58]}  Ra1 {[%clk 0:00:51]} 50. Bxf5 {[%clk 0:00:56]}  Ra2+ {[%clk 0:00:51]} 51. Kf3 {[%clk 0:00:56]}  Ra1 {[%clk 0:00:51]} 52. Bd3 {[%clk 0:00:55]}  Rh1 {[%clk 0:00:50]} 53. a4 {[%clk 0:00:52]}  Rh3+ {[%clk 0:00:49]} 54. Ke4 {[%clk 0:00:52]}  Rh1 {[%clk 0:00:49]} 55. Ra6+ {[%clk 0:00:52]}  Ke7 {[%clk 0:00:49]} 56. Bc4 {[%clk 0:00:50]}  Re1+ {[%clk 0:00:38]} 57. Kf5 {[%clk 0:00:49]} 1-0


[Site "https://www.chess.com"]

[Event "Titled Tuesday Blitz November 14 Late 2023"]
[White "Estrada Nieto, Julian"]
[Black "Fernandez Hernandez, Gerardo"]
[WhiteFideId "5101018"]
[BlackFideId "2207400"]
[WhiteElo "2425"]
[BlackElo "2118"]
[Result "1-0"]
[Round "2"]
[TimeControl "180+1"]
[Date "2023.11.14"]
[WhiteClock "0:00:29"]
[BlackClock "0:00:03"]
[Board "175"]

1. e4 {[%clk 0:03:00]}  e6 {[%clk 0:03:00]} 2. d4 {[%clk 0:02:59]}  d5 {[%clk 0:03:00]} 3. Nd2 {[%clk 0:02:59]}  Nc6 {[%clk 0:03:00]} 4. Ngf3 {[%clk 0:02:58]}  Nf6 {[%clk 0:03:00]} 5. e5 {[%clk 0:02:58]}  Nd7 {[%clk 0:03:01]} 6. Be2 {[%clk 0:02:54]}  f6 {[%clk 0:02:59]} 7. exf6 {[%clk 0:02:55]}  Qxf6 {[%clk 0:02:59]} 8. Nf1 {[%clk 0:02:56]}  Bd6 {[%clk 0:02:57]} 9. Ne3 {[%clk 0:02:56]}  O-O {[%clk 0:02:54]} 10. O-O {[%clk 0:02:54]}  Qg6 {[%clk 0:02:53]} 11. h3 {[%clk 0:02:50]}  Nf6 {[%clk 0:02:50]} 12. c3 {[%clk 0:02:37]}  e5 {[%clk 0:02:48]} 13. dxe5 {[%clk 0:02:34]}  Nxe5 {[%clk 0:02:47]} 14. Nxd5 {[%clk 0:02:32]}  Bxh3 {[%clk 0:02:41]} 15. Nh4 {[%clk 0:02:14]}  Qf7 {[%clk 0:02:23]} 16. gxh3 {[%clk 0:02:01]}  Qxd5 {[%clk 0:02:06]} 17. Qxd5+ {[%clk 0:01:54]}  Nxd5 {[%clk 0:02:06]} 18. f4 {[%clk 0:01:50]}  Ng6 {[%clk 0:01:56]} 19. Nxg6 {[%clk 0:01:45]}  hxg6 {[%clk 0:01:54]} 20. Bc4 {[%clk 0:01:46]}  c6 {[%clk 0:01:54]} 21. Be3 {[%clk 0:01:37]}  Kh7 {[%clk 0:01:52]} 22. Bxd5 {[%clk 0:01:36]}  cxd5 {[%clk 0:01:53]} 23. Rad1 {[%clk 0:01:36]}  Rf5 {[%clk 0:01:53]} 24. c4 {[%clk 0:01:29]}  Rc8 {[%clk 0:01:21]} 25. Rxd5 {[%clk 0:01:19]}  Rxd5 {[%clk 0:01:19]} 26. cxd5 {[%clk 0:01:19]}  Rc2 {[%clk 0:01:18]} 27. Rf2 {[%clk 0:01:17]}  Rc4 {[%clk 0:01:09]} 28. Kg2 {[%clk 0:01:14]}  a6 {[%clk 0:00:58]} 29. Kf3 {[%clk 0:01:11]}  Rc8 {[%clk 0:00:55]} 30. Rd2 {[%clk 0:01:10]}  Rf8 {[%clk 0:00:54]} 31. Kg4 {[%clk 0:01:00]}  Re8 {[%clk 0:00:50]} 32. Kf3 {[%clk 0:00:57]}  Rf8 {[%clk 0:00:50]} 33. Rd4 {[%clk 0:00:53]}  g5 {[%clk 0:00:48]} 34. Kg4 {[%clk 0:00:52]}  Bc5 {[%clk 0:00:42]} 35. Re4 {[%clk 0:00:48]}  Bxe3 {[%clk 0:00:41]} 36. Rxe3 {[%clk 0:00:47]}  gxf4 {[%clk 0:00:36]} 37. Rf3 {[%clk 0:00:43]}  Rd8 {[%clk 0:00:35]} 38. Rd3 {[%clk 0:00:38]}  Kg6 {[%clk 0:00:18]} 39. Kxf4 {[%clk 0:00:37]}  Kf6 {[%clk 0:00:18]} 40. Ke4 {[%clk 0:00:37]}  Ke7 {[%clk 0:00:17]} 41. Rg3 {[%clk 0:00:37]}  Rg8 {[%clk 0:00:15]} 42. Ke5 {[%clk 0:00:37]}  g5 {[%clk 0:00:15]} 43. Rc3 {[%clk 0:00:35]}  Kd7 {[%clk 0:00:14]} 44. d6 {[%clk 0:00:34]}  b5 {[%clk 0:00:10]} 45. Rc7+ {[%clk 0:00:33]}  Kd8 {[%clk 0:00:11]} 46. Ra7 {[%clk 0:00:33]}  Re8+ {[%clk 0:00:08]} 47. Kd5 {[%clk 0:00:33]}  Re1 {[%clk 0:00:06]} 48. Rxa6 {[%clk 0:00:30]}  Rd1+ {[%clk 0:00:04]} 49. Kc6 {[%clk 0:00:30]}  Rh1 {[%clk 0:00:03]} 50. Ra8# {[%clk 0:00:29]} 1-0


[Site "https://www.chess.com"]

[Event "Titled Tuesday Blitz November 14 Late 2023"]
[White "Miszler, Levente"]
[Black "Oliveira, Tiago Batista"]
[WhiteFideId "763276"]
[BlackFideId "2108291"]
[WhiteElo "2422"]
[BlackElo "2077"]
[Result "1-0"]
[Round "2"]
[TimeControl "180+1"]
[Date "2023.11.14"]
[WhiteClock "0:00:43"]
[BlackClock "0:00:00"]
[Board "176"]

1. e4 {[%clk 0:03:00]}  e5 {[%clk 0:02:58]} 2. Nf3 {[%clk 0:03:00]}  Nc6 {[%clk 0:02:58]} 3. Bc4 {[%clk 0:03:00]}  Bc5 {[%clk 0:02:58]} 4. c3 {[%clk 0:02:55]}  Nf6 {[%clk 0:02:56]} 5. d3 {[%clk 0:02:54]}  h6 {[%clk 0:02:53]} 6. b4 {[%clk 0:02:54]}  Bb6 {[%clk 0:02:52]} 7. a4 {[%clk 0:02:54]}  a6 {[%clk 0:02:51]} 8. O-O {[%clk 0:02:53]}  O-O {[%clk 0:02:51]} 9. Nbd2 {[%clk 0:02:51]}  d6 {[%clk 0:02:46]} 10. Re1 {[%clk 0:02:49]}  Qe7 {[%clk 0:02:42]} 11. Nf1 {[%clk 0:02:49]}  Be6 {[%clk 0:02:42]} 12. Bxe6 {[%clk 0:02:47]}  Qxe6 {[%clk 0:02:41]} 13. Be3 {[%clk 0:02:47]}  Bxe3 {[%clk 0:02:29]} 14. Nxe3 {[%clk 0:02:48]}  Ne7 {[%clk 0:02:28]} 15. c4 {[%clk 0:02:36]}  c6 {[%clk 0:02:28]} 16. Qc2 {[%clk 0:02:32]}  Rfe8 {[%clk 0:02:28]} 17. d4 {[%clk 0:02:29]}  Ng6 {[%clk 0:02:14]} 18. d5 {[%clk 0:02:24]}  Qd7 {[%clk 0:01:59]} 19. c5 {[%clk 0:02:21]}  dxc5 {[%clk 0:01:51]} 20. bxc5 {[%clk 0:02:15]}  cxd5 {[%clk 0:01:32]} 21. exd5 {[%clk 0:02:14]}  Nxd5 {[%clk 0:01:23]} 22. Nxd5 {[%clk 0:02:03]}  Qxd5 {[%clk 0:01:23]} 23. Rad1 {[%clk 0:02:00]}  Qc6 {[%clk 0:01:20]} 24. Rd6 {[%clk 0:01:59]}  Qc7 {[%clk 0:01:19]} 25. Qc4 {[%clk 0:01:24]}  Kh7 {[%clk 0:00:57]} 26. Qd5 {[%clk 0:01:22]}  Re7 {[%clk 0:00:39]} 27. Nxe5 {[%clk 0:01:16]}  Nxe5 {[%clk 0:00:38]} 28. Rxe5 {[%clk 0:01:17]}  Rae8 {[%clk 0:00:36]} 29. f4 {[%clk 0:01:15]}  Rxe5 {[%clk 0:00:32]} 30. fxe5 {[%clk 0:01:16]}  Re7 {[%clk 0:00:30]} 31. Qd3+ {[%clk 0:01:10]}  g6 {[%clk 0:00:27]} 32. Qd5 {[%clk 0:01:06]}  Qa5 {[%clk 0:00:21]} 33. Rf6 {[%clk 0:00:53]}  Qe1+ {[%clk 0:00:19]} 34. Rf1 {[%clk 0:00:54]}  Qe3+ {[%clk 0:00:13]} 35. Kh1 {[%clk 0:00:53]}  Kg7 {[%clk 0:00:07]} 36. h3 {[%clk 0:00:51]}  h5 {[%clk 0:00:06]} 37. Rf6 {[%clk 0:00:47]}  h4 {[%clk 0:00:02]} 38. Rf1 {[%clk 0:00:44]}  g5 {[%clk 0:00:00]} 39. e6 {[%clk 0:00:43]} 1-0


[Site "https://www.chess.com"]

[Event "Titled Tuesday Blitz November 14 Late 2023"]
[White "Winkels, Marcel"]
[Black "Djabri, Massinas"]
[WhiteFideId "1003887"]
[BlackFideId "7905726"]
[WhiteElo "2069"]
[BlackElo "2421"]
[Result "0-1"]
[Round "2"]
[TimeControl "180+1"]
[Date "2023.11.14"]
[WhiteClock "0:00:11"]
[BlackClock "0:00:16"]
[Board "178"]

1. e4 {[%clk 0:03:00]}  c5 {[%clk 0:02:59]} 2. Nf3 {[%clk 0:03:01]}  d6 {[%clk 0:03:00]} 3. d4 {[%clk 0:03:01]}  cxd4 {[%clk 0:03:01]} 4. Nxd4 {[%clk 0:03:01]}  Nf6 {[%clk 0:03:01]} 5. Nc3 {[%clk 0:03:01]}  a6 {[%clk 0:03:02]} 6. h3 {[%clk 0:03:01]}  e5 {[%clk 0:03:01]} 7. Nf3 {[%clk 0:03:01]}  Qc7 {[%clk 0:02:59]} 8. g4 {[%clk 0:03:00]}  h6 {[%clk 0:02:54]} 9. Rg1 {[%clk 0:02:57]}  b5 {[%clk 0:02:51]} 10. g5 {[%clk 0:02:45]}  hxg5 {[%clk 0:02:50]} 11. Nxg5 {[%clk 0:02:44]}  b4 {[%clk 0:02:41]} 12. Nd5 {[%clk 0:02:40]}  Nxd5 {[%clk 0:02:41]} 13. Qxd5 {[%clk 0:02:40]}  Bb7 {[%clk 0:02:42]} 14. Qd3 {[%clk 0:02:40]}  Nd7 {[%clk 0:02:35]} 15. Be3 {[%clk 0:02:32]}  Nc5 {[%clk 0:02:34]} 16. Qc4 {[%clk 0:02:20]}  f6 {[%clk 0:01:30]} 17. Ne6 {[%clk 0:02:03]}  Nxe6 {[%clk 0:01:29]} 18. Qxe6+ {[%clk 0:02:03]}  Qe7 {[%clk 0:01:26]} 19. Qxe7+ {[%clk 0:01:54]}  Kxe7 {[%clk 0:01:26]} 20. O-O-O {[%clk 0:01:54]}  Bxe4 {[%clk 0:01:23]} 21. Kb1 {[%clk 0:01:31]}  Rc8 {[%clk 0:01:16]} 22. Rd2 {[%clk 0:01:30]}  Rc6 {[%clk 0:01:14]} 23. b3 {[%clk 0:01:14]}  Ke6 {[%clk 0:01:11]} 24. Bc4+ {[%clk 0:01:09]}  d5 {[%clk 0:01:11]} 25. Bf1 {[%clk 0:01:07]}  g5 {[%clk 0:01:08]} 26. Rg3 {[%clk 0:00:56]}  d4 {[%clk 0:01:03]} 27. Bxd4 {[%clk 0:00:49]}  exd4 {[%clk 0:01:03]} 28. Rxd4 {[%clk 0:00:49]}  Bxc2+ {[%clk 0:00:59]} 29. Kb2 {[%clk 0:00:47]}  Bd6 {[%clk 0:00:32]} 30. Re3+ {[%clk 0:00:44]}  Be5 {[%clk 0:00:31]} 31. Bc4+ {[%clk 0:00:42]}  Rxc4 {[%clk 0:00:31]} 32. bxc4 {[%clk 0:00:38]}  Kf5 {[%clk 0:00:19]} 33. Kxc2 {[%clk 0:00:24]}  Bxd4 {[%clk 0:00:18]} 34. Rf3+ {[%clk 0:00:23]}  Ke4 {[%clk 0:00:18]} 35. Rd3 {[%clk 0:00:20]}  Rc8 {[%clk 0:00:16]} 36. Rd2 {[%clk 0:00:18]}  Rxc4+ {[%clk 0:00:16]} 37. Kb3 {[%clk 0:00:18]}  Rc3+ {[%clk 0:00:16]} 38. Kxb4 {[%clk 0:00:18]}  Rxh3 {[%clk 0:00:16]} 39. Ka5 {[%clk 0:00:11]}  Bc3+ {[%clk 0:00:16]} 0-1


[Site "https://www.chess.com"]

[Event "Titled Tuesday Blitz November 14 Late 2023"]
[White "Hoffmann, Asa"]
[Black "Djordjevic, Dejan N"]
[WhiteFideId "2001470"]
[BlackFideId "913316"]
[WhiteElo "2414"]
[BlackElo "2025"]
[Result "0-1"]
[Round "2"]
[TimeControl "180+1"]
[Date "2023.11.14"]
[WhiteClock "0:00:22"]
[BlackClock "0:00:08"]
[Board "181"]

1. d4 {[%clk 0:03:00]}  Nf6 {[%clk 0:02:59]} 2. Bg5 {[%clk 0:02:57]}  e6 {[%clk 0:02:59]} 3. Nd2 {[%clk 0:02:55]}  d5 {[%clk 0:02:58]} 4. e3 {[%clk 0:02:55]}  Be7 {[%clk 0:02:57]} 5. Bd3 {[%clk 0:02:55]}  Nbd7 {[%clk 0:02:55]} 6. f4 {[%clk 0:02:55]}  c5 {[%clk 0:02:55]} 7. c3 {[%clk 0:02:55]}  h6 {[%clk 0:02:52]} 8. Bh4 {[%clk 0:02:54]}  a6 {[%clk 0:02:48]} 9. Ngf3 {[%clk 0:02:54]}  b5 {[%clk 0:02:45]} 10. O-O {[%clk 0:02:54]}  b4 {[%clk 0:02:44]} 11. Ne5 {[%clk 0:02:51]}  Qc7 {[%clk 0:02:40]} 12. Rc1 {[%clk 0:02:46]}  bxc3 {[%clk 0:02:38]} 13. bxc3 {[%clk 0:02:45]}  c4 {[%clk 0:02:37]} 14. Bc2 {[%clk 0:02:45]}  O-O {[%clk 0:02:25]} 15. Qf3 {[%clk 0:02:40]}  Rb8 {[%clk 0:02:19]} 16. Bg3 {[%clk 0:02:37]}  Nxe5 {[%clk 0:02:10]} 17. fxe5 {[%clk 0:02:37]}  Nd7 {[%clk 0:02:09]} 18. e4 {[%clk 0:02:37]}  Bb7 {[%clk 0:02:00]} 19. Qg4 {[%clk 0:02:36]}  Kh8 {[%clk 0:01:52]} 20. Bf4 {[%clk 0:02:32]}  Qd8 {[%clk 0:01:46]} 21. Qh5 {[%clk 0:02:25]}  Bg5 {[%clk 0:01:43]} 22. h4 {[%clk 0:02:15]}  g6 {[%clk 0:01:20]} 23. Qg4 {[%clk 0:02:12]}  Bxf4 {[%clk 0:01:18]} 24. Rxf4 {[%clk 0:02:10]}  h5 {[%clk 0:01:18]} 25. Qg3 {[%clk 0:02:09]}  Bc6 {[%clk 0:01:16]} 26. Rcf1 {[%clk 0:02:08]}  Qe7 {[%clk 0:01:16]} 27. Nf3 {[%clk 0:02:05]}  Rb2 {[%clk 0:01:08]} 28. Bd1 {[%clk 0:01:57]}  dxe4 {[%clk 0:00:56]} 29. Ng5 {[%clk 0:01:56]}  e3 {[%clk 0:00:56]} 30. Bf3 {[%clk 0:01:50]}  e2 {[%clk 0:00:48]} 31. Re1 {[%clk 0:01:49]}  Bxf3 {[%clk 0:00:47]} 32. Qxf3 {[%clk 0:01:49]}  Kg7 {[%clk 0:00:44]} 33. Rxe2 {[%clk 0:01:44]}  Rxe2 {[%clk 0:00:43]} 34. Qxe2 {[%clk 0:01:43]}  Nb6 {[%clk 0:00:42]} 35. Qf3 {[%clk 0:01:43]}  Nd5 {[%clk 0:00:42]} 36. Re4 {[%clk 0:01:35]}  Qa3 {[%clk 0:00:41]} 37. g4 {[%clk 0:01:24]}  Qxc3 {[%clk 0:00:39]} 38. gxh5 {[%clk 0:01:06]}  Qxf3 {[%clk 0:00:36]} 39. Nxf3 {[%clk 0:01:04]}  gxh5 {[%clk 0:00:25]} 40. Re2 {[%clk 0:00:56]}  c3 {[%clk 0:00:23]} 41. Ng5 {[%clk 0:00:55]}  Rb8 {[%clk 0:00:18]} 42. Rf2 {[%clk 0:00:54]}  Rb1+ {[%clk 0:00:16]} 43. Kg2 {[%clk 0:00:53]}  Rb2 {[%clk 0:00:16]} 44. Ne4 {[%clk 0:00:51]}  Rxf2+ {[%clk 0:00:15]} 45. Nxf2 {[%clk 0:00:50]}  c2 {[%clk 0:00:16]} 46. Nd3 {[%clk 0:00:50]}  Nc3 {[%clk 0:00:13]} 47. Nc1 {[%clk 0:00:47]}  Kg6 {[%clk 0:00:13]} 48. Kf3 {[%clk 0:00:47]}  Kf5 {[%clk 0:00:13]} 49. Ke3 {[%clk 0:00:48]}  Nb5 {[%clk 0:00:13]} 50. Kd3 {[%clk 0:00:47]}  Kg4 {[%clk 0:00:13]} 51. Ne2 {[%clk 0:00:44]}  c1=Q {[%clk 0:00:12]} 52. Nxc1 {[%clk 0:00:43]}  Kxh4 {[%clk 0:00:12]} 53. d5 {[%clk 0:00:43]}  exd5 {[%clk 0:00:12]} 54. Nb3 {[%clk 0:00:42]}  Kg3 {[%clk 0:00:11]} 55. Nc5 {[%clk 0:00:42]}  h4 {[%clk 0:00:11]} 56. Nxa6 {[%clk 0:00:39]}  h3 {[%clk 0:00:11]} 57. Nb4 {[%clk 0:00:39]}  h2 {[%clk 0:00:11]} 58. Nxd5 {[%clk 0:00:39]}  h1=Q {[%clk 0:00:12]} 59. Nf6 {[%clk 0:00:38]}  Qd1+ {[%clk 0:00:10]} 60. Kc4 {[%clk 0:00:38]}  Nc7 {[%clk 0:00:10]} 61. a4 {[%clk 0:00:36]}  Qxa4+ {[%clk 0:00:10]} 62. Kc5 {[%clk 0:00:35]}  Qa6 {[%clk 0:00:08]} 63. Kd4 {[%clk 0:00:33]}  Ne6+ {[%clk 0:00:08]} 64. Kd5 {[%clk 0:00:33]}  Nf4+ {[%clk 0:00:07]} 65. Ke4 {[%clk 0:00:32]}  Qc6+ {[%clk 0:00:07]} 66. Kf5 {[%clk 0:00:31]}  Qe6+ {[%clk 0:00:07]} 67. Ke4 {[%clk 0:00:31]}  Ng6 {[%clk 0:00:07]} 68. Nd5 {[%clk 0:00:27]}  Qxe5+ {[%clk 0:00:07]} 69. Kd3 {[%clk 0:00:25]}  Qxd5+ {[%clk 0:00:07]} 70. Ke3 {[%clk 0:00:24]}  f5 {[%clk 0:00:07]} 71. Ke2 {[%clk 0:00:24]}  Qd4 {[%clk 0:00:07]} 72. Kf1 {[%clk 0:00:24]}  Qb2 {[%clk 0:00:07]} 73. Ke1 {[%clk 0:00:23]}  Kf3 {[%clk 0:00:07]} 74. Kd1 {[%clk 0:00:23]}  Ke3 {[%clk 0:00:07]} 75. Ke1 {[%clk 0:00:22]}  Qe2# {[%clk 0:00:08]} 0-1


[Site "https://www.chess.com"]

[Event "Titled Tuesday Blitz November 14 Late 2023"]
[White "tandercat"]
[Black "Kujawski, Adam"]
[BlackFideId "1100920"]
[WhiteElo "2024"]
[BlackElo "2413"]
[Result "1-0"]
[Round "2"]
[TimeControl "180+1"]
[Date "2023.11.14"]
[WhiteClock "0:00:43"]
[BlackClock "0:00:00"]
[Board "182"]

1. d4 {[%clk 0:03:00]}  Nf6 {[%clk 0:02:07]} 2. c4 {[%clk 0:02:56]}  e6 {[%clk 0:02:05]} 3. Nc3 {[%clk 0:02:56]}  Bb4 {[%clk 0:02:05]} 4. f3 {[%clk 0:02:56]}  d5 {[%clk 0:02:04]} 5. a3 {[%clk 0:02:55]}  Bxc3+ {[%clk 0:02:03]} 6. bxc3 {[%clk 0:02:56]}  O-O {[%clk 0:01:57]} 7. cxd5 {[%clk 0:02:55]}  exd5 {[%clk 0:01:57]} 8. e3 {[%clk 0:02:55]}  c5 {[%clk 0:01:56]} 9. Bd3 {[%clk 0:02:56]}  b6 {[%clk 0:01:55]} 10. Ne2 {[%clk 0:02:55]}  Ba6 {[%clk 0:01:55]} 11. O-O {[%clk 0:02:54]}  Bxd3 {[%clk 0:01:54]} 12. Qxd3 {[%clk 0:02:55]}  Nc6 {[%clk 0:01:51]} 13. e4 {[%clk 0:02:46]}  cxd4 {[%clk 0:01:49]} 14. cxd4 {[%clk 0:02:45]}  dxe4 {[%clk 0:01:49]} 15. fxe4 {[%clk 0:02:44]}  Re8 {[%clk 0:01:45]} 16. Bg5 {[%clk 0:02:32]}  Ne5 {[%clk 0:01:23]} 17. Qg3 {[%clk 0:02:08]}  Ned7 {[%clk 0:00:55]} 18. e5 {[%clk 0:01:56]}  h6 {[%clk 0:00:55]} 19. Bh4 {[%clk 0:01:49]}  g5 {[%clk 0:00:53]} 20. Bxg5 {[%clk 0:01:45]}  hxg5 {[%clk 0:00:53]} 21. Qxg5+ {[%clk 0:01:45]}  Kf8 {[%clk 0:00:43]} 22. exf6 {[%clk 0:01:45]}  Nxf6 {[%clk 0:00:42]} 23. Qh6+ {[%clk 0:01:32]}  Kg8 {[%clk 0:00:32]} 24. Rxf6 {[%clk 0:01:29]}  Rxe2 {[%clk 0:00:31]} 25. Qg5+ {[%clk 0:00:58]}  Kf8 {[%clk 0:00:31]} 26. Raf1 {[%clk 0:00:55]}  Qxd4+ {[%clk 0:00:30]} 27. Kh1 {[%clk 0:00:53]}  Re7 {[%clk 0:00:18]} 28. Qh6+ {[%clk 0:00:46]}  Kg8 {[%clk 0:00:00]} 29. R6f4 {[%clk 0:00:43]} 1-0


[Site "https://www.chess.com"]

[Event "Titled Tuesday Blitz November 14 Late 2023"]
[White "Goncalves, Davi Sulzbacher"]
[Black "Desideri, Ricardo Maruchi"]
[WhiteFideId "2154510"]
[BlackFideId "2110440"]
[WhiteElo "2412"]
[BlackElo "1983"]
[Result "1-0"]
[Round "2"]
[TimeControl "180+1"]
[Date "2023.11.14"]
[WhiteClock "0:00:11"]
[BlackClock "0:00:09"]
[Board "183"]

1. e4 {[%clk 0:02:57]}  c5 {[%clk 0:02:59]} 2. f4 {[%clk 0:02:56]}  d6 {[%clk 0:02:59]} 3. Nf3 {[%clk 0:02:56]}  g6 {[%clk 0:02:59]} 4. Bc4 {[%clk 0:02:55]}  Bg7 {[%clk 0:03:00]} 5. O-O {[%clk 0:02:54]}  e6 {[%clk 0:03:00]} 6. f5 {[%clk 0:02:53]}  d5 {[%clk 0:02:56]} 7. fxe6 {[%clk 0:02:35]}  fxe6 {[%clk 0:02:46]} 8. exd5 {[%clk 0:02:34]}  exd5 {[%clk 0:02:45]} 9. Qe2+ {[%clk 0:02:26]}  Ne7 {[%clk 0:02:43]} 10. Bb5+ {[%clk 0:02:26]}  Nc6 {[%clk 0:02:43]} 11. Ng5 {[%clk 0:02:26]}  Bf5 {[%clk 0:02:34]} 12. Ne6 {[%clk 0:02:23]}  Bxe6 {[%clk 0:02:23]} 13. Qxe6 {[%clk 0:02:24]}  Rf8 {[%clk 0:02:14]} 14. Rxf8+ {[%clk 0:02:04]}  Kxf8 {[%clk 0:02:14]} 15. c3 {[%clk 0:01:45]}  a6 {[%clk 0:02:09]} 16. Bf1 {[%clk 0:01:43]}  Qc8 {[%clk 0:02:01]} 17. Qxc8+ {[%clk 0:01:37]}  Rxc8 {[%clk 0:02:00]} 18. Na3 {[%clk 0:01:36]}  b5 {[%clk 0:01:46]} 19. Nc2 {[%clk 0:01:34]}  d4 {[%clk 0:01:44]} 20. a4 {[%clk 0:01:33]}  c4 {[%clk 0:01:28]} 21. axb5 {[%clk 0:01:31]}  axb5 {[%clk 0:01:28]} 22. Ra6 {[%clk 0:01:29]}  d3 {[%clk 0:01:23]} 23. Na3 {[%clk 0:01:23]}  Rb8 {[%clk 0:01:18]} 24. b3 {[%clk 0:01:20]}  cxb3 {[%clk 0:01:15]} 25. Bxd3 {[%clk 0:01:19]}  b4 {[%clk 0:01:05]} 26. Nb5 {[%clk 0:01:19]}  bxc3 {[%clk 0:00:53]} 27. dxc3 {[%clk 0:01:20]}  Bxc3 {[%clk 0:00:50]} 28. Nxc3 {[%clk 0:01:20]}  b2 {[%clk 0:00:51]} 29. Bh6+ {[%clk 0:01:20]}  Kf7 {[%clk 0:00:46]} 30. Bc4+ {[%clk 0:01:15]}  Kf6 {[%clk 0:00:44]} 31. Nb1 {[%clk 0:00:58]}  Ke5 {[%clk 0:00:43]} 32. Kf2 {[%clk 0:00:56]}  Kd4 {[%clk 0:00:44]} 33. Be6 {[%clk 0:00:50]}  Nb4 {[%clk 0:00:35]} 34. Ra4 {[%clk 0:00:45]}  Nc6 {[%clk 0:00:34]} 35. Bg7+ {[%clk 0:00:43]}  Kc5 {[%clk 0:00:32]} 36. Bd7 {[%clk 0:00:20]}  Rb7 {[%clk 0:00:25]} 37. Bxc6 {[%clk 0:00:15]}  Kxc6 {[%clk 0:00:25]} 38. Bc3 {[%clk 0:00:13]}  Nd5 {[%clk 0:00:18]} 39. Bd4 {[%clk 0:00:13]}  Nb4 {[%clk 0:00:17]} 40. Ke2 {[%clk 0:00:12]}  Re7+ {[%clk 0:00:15]} 41. Kd2 {[%clk 0:00:12]}  Rd7 {[%clk 0:00:09]} 42. Rxb4 {[%clk 0:00:11]} 1-0


[Site "https://www.chess.com"]